bitfinex/quotes_ETHUSD_20251119
["timestamp","ask_amount","ask_price","bid_price","bid_amount"]
[1763574593679,0.405504,2923.5,2923.3,0.001]
[1763574593873,0.891604,2923.5,2923.3,0.001]
[1763574594100,3.42067455,2923.4,2923.3,0.001]
[1763574594302,3.42056313,2923.5,2923.3,0.001]
[1763574594520,6.84112626,2923.5,2923.3,0.001]
[1763574595022,3.42056313,2923.5,2923.3,0.001]
[1763574595315,6.83947746,2924.2,2923.3,0.001]
[1763574595512,0.4861,2924.1,2923.3,0.001]
[1763574595828,0.405504,2924.0,2923.3,0.001]
[1763574596314,0.405504,2923.8,2923.3,0.001]
[1763574596523,14.1664584,2923.9,2923.3,0.001]
[1763574596812,2.30824984,2923.8,2923.3,0.001]
[1763574597303,0.405504,2923.6,2923.3,0.001]
[1763574597824,0.90699264,2923.7,2923.3,0.001]
[1763574598408,0.90699264,2923.8,2923.3,0.001]
[1763574598821,6.84019912,2923.9,2923.3,0.001]
[1763574599178,10.26030864,2923.9,2923.3,0.001]
[1763574600293,4.017504,2923.7,2923.0,0.001]
[1763574600496,4.51899264,2923.4,2923.0,0.001]
[1763574600720,0.405504,2923.3,2923.0,0.001]
[1763574600936,1.51213086,2923.9,2923.0,0.001]
[1763574601135,0.891604,2923.8,2923.0,0.001]
[1763574601343,0.405504,2923.6,2923.0,0.001]
[1763574601558,1.09875613,2923.7,2921.7,0.001]
[1763574601559,1.31249664,2922.7,2921.7,0.001]
[1763574601842,1.31249664,2921.5,2920.0,0.5911]
[1763574601997,0.405504,2921.3,2920.0,0.5911]
[1763574602302,0.90699264,2921.1,2920.0,0.5911]
[1763574602505,3.42325071,2921.2,2920.1,0.90699264]
[1763574602899,3.42325071,2921.2,2920.2,0.6131]
[1763574603101,3.42273885,2921.7,2920.2,0.6131]
[1763574603102,0.90699264,2922.0,2921.1,0.1846]
[1763574603317,0.891604,2921.9,2920.2,0.4911]
[1763574603517,0.405504,2921.7,2920.2,0.4911]
[1763574603812,0.405504,2921.5,2920.2,0.4911]
[1763574604225,1.31249664,2921.6,2920.2,0.4911]
[1763574604397,6.84532976,2921.7,2920.4,0.90699264]
[1763574604603,3.42149382,2922.7,2921.6,0.1846]
[1763574604805,10.26464348,2922.7,2921.6,0.1846]
[1763574605056,0.4861,2922.6,2921.2,0.1846]
[1763574605347,0.405504,2922.2,2920.3,0.6131]
[1763574605512,1.31249664,2921.8,2920.3,0.122]
[1763574605854,0.405504,2921.6,2920.3,0.122]
[1763574606005,0.405504,2921.6,2920.4,0.4911]
[1763574606326,0.90699264,2921.2,2920.4,0.4911]
[1763574606837,0.90699264,2921.2,2920.3,0.122]
[1763574607061,0.90699264,2921.2,2920.0,0.5911]
[1763574607062,0.891604,2921.1,2920.0,0.1]
[1763574607205,0.584704,2920.1,2920.0,0.1]
[1763574607632,1.070804,2920.1,2920.0,0.1]
[1763574607818,0.405504,2920.3,2920.0,0.1]
[1763574608017,1.31249664,2920.3,2919.0,0.001]
[1763574608218,1.31249664,2919.6,2919.0,0.001]
[1763574608450,0.405504,2919.4,2919.0,0.001]
[1763574608834,0.869004,2919.4,2919.0,0.001]
[1763574609072,0.405504,2919.4,2919.0,0.001]
[1763574609282,0.405504,2920.0,2919.0,0.001]
[1763574609562,0.405504,2919.8,2919.0,0.001]
[1763574609767,1.31249664,2919.8,2919.0,0.001]
[1763574610070,0.405504,2919.6,2919.0,0.001]
[1763574610269,17.12270125,2920.1,2919.0,0.001]
[1763574610270,0.4635,2920.3,2919.0,0.001]
[1763574610563,1.31249664,2920.1,2919.3,0.4669]
[1763574610764,1.31249664,2920.1,2919.3,0.001]
[1763574610968,0.405504,2919.9,2919.3,0.001]
[1763574611130,1.31249664,2919.6,2919.3,0.001]
[1763574611331,0.405504,2919.4,2919.3,0.001]
[1763574611973,0.405504,2920.0,2919.3,0.001]
[1763574612352,8.0925369,2919.8,2919.3,0.001]
[1763574612736,0.405504,2919.6,2919.3,0.001]
[1763574613135,0.405504,2919.4,2919.3,0.001]
[1763574613346,0.90699264,2919.9,2919.3,0.001]
[1763574613693,0.405504,2919.6,2919.3,0.001]
[1763574614189,0.90699264,2919.8,2919.3,0.001]
[1763574614372,0.90699264,2919.6,2919.3,0.001]
[1763574614575,0.1792,2920.8,2919.7,0.1828]
[1763574614977,0.1792,2920.8,2919.7,0.6487]
[1763574614978,0.90699264,2920.8,2919.7,0.6487]
[1763574615289,1.13576893,2920.8,2919.7,0.6487]
[1763574615458,2.04276157,2920.8,2919.7,0.6487]
[1763574615658,0.4635,2920.7,2919.3,0.001]
[1763574615849,0.405504,2920.6,2919.3,0.001]
[1763574616389,1.31249664,2920.4,2919.3,0.001]
[1763574616566,0.405504,2920.2,2919.3,0.001]
[1763574616956,0.405504,2920.3,2919.3,0.4669]
[1763574617353,0.405504,2920.3,2919.3,0.001]
[1763574617590,0.869004,2920.3,2919.3,0.001]
[1763574617954,0.869004,2920.2,2919.3,0.001]
[1763574618287,1.31249664,2920.0,2919.3,0.001]
[1763574618495,0.405504,2919.8,2919.3,0.001]
[1763574619191,0.405504,2919.9,2919.3,0.001]
[1763574619357,0.90699264,2920.0,2919.3,0.001]
[1763574619557,6.8490805,2920.1,2919.3,0.001]
[1763574619787,6.8490805,2920.1,2919.4,0.4659]
[1763574620089,6.8490805,2920.1,2919.5,0.1828]
[1763574620251,3.42427918,2920.4,2919.5,0.1828]
[1763574620455,1.31249664,2920.3,2919.3,0.001]
[1763574620650,0.405504,2920.1,2919.3,0.001]
[1763574620863,0.90699264,2920.3,2919.4,0.4659]
[1763574621064,0.405504,2920.2,2919.4,0.4659]
[1763574621379,0.405504,2920.2,2919.5,0.1828]
[1763574621697,6.84846764,2920.4,2919.5,0.1828]
[1763574621875,6.84846764,2920.4,2919.5,0.6487]
[1763574622265,3.4236455,2920.9,2919.5,0.6487]
[1763574622266,0.1792,2921.1,2919.7,3.42500941]
[1763574622594,4.017504,2920.6,2919.3,0.001]
[1763574622767,0.405504,2920.2,2919.3,0.001]
[1763574623180,0.4635,2920.1,2919.3,0.001]
[1763574623413,0.405504,2920.5,2919.3,0.001]
[1763574623612,0.405504,2920.3,2919.3,0.001]
[1763574624102,0.89795366,2920.3,2919.3,0.001]
[1763574624309,6.84931506,2920.0,2919.3,0.001]
[1763574624519,1.31249664,2919.9,2919.3,0.001]
[1763574624685,1.77599664,2919.9,2919.3,0.001]
[1763574624871,1.31249664,2919.9,2919.3,0.001]
[1763574625367,0.405504,2919.7,2919.3,0.001]
[1763574625569,0.58375366,2919.7,2919.3,0.001]
[1763574625818,1.31249664,2919.5,2919.3,0.001]
[1763574626112,0.875504,2919.4,2919.3,0.001]
[1763574626416,4.73785801,2919.4,2919.3,0.001]
[1763574626908,5.20785801,2919.4,2919.3,0.001]
[1763574627143,6.87668462,2919.4,2919.3,0.001]
[1763574627522,6.40668462,2919.4,2919.3,0.001]
[1763574627817,6.84837692,2920.4,2919.3,0.001]
[1763574627994,0.90699264,2920.2,2919.3,0.001]
[1763574628197,14.16675384,2920.4,2919.3,0.001]
[1763574628198,6.84837692,2920.4,2919.3,0.001]
[1763574628408,0.002,2920.5,2919.4,3.91055829]
[1763574628814,0.002,2920.5,2919.5,1.39219264]
[1763574629177,0.86099264,2920.9,2919.6,0.6072]
[1763574629379,3.4234851,2921.0,2919.6,0.6072]
[1763574629609,3.4234851,2921.0,2919.7,0.4852]
[1763574630031,6.84701839,2921.0,2919.8,0.122]
[1763574630331,0.002,2921.1,2920.9,0.1859]
[1763574630497,0.89893449,2922.9,2920.9,3.60946054]
[1763574630703,6.84158314,2923.3,2921.8,0.1859]
[1763574630917,0.1766,2923.4,2921.9,0.122]
[1763574631239,0.90699264,2923.3,2921.9,0.6072]
[1763574631524,10.26205833,2923.4,2922.0,0.6072]
[1763574631828,0.90699264,2923.3,2922.0,0.6072]
[1763574632030,6.84064712,2923.7,2922.1,0.4852]
[1763574632337,1.02608997,2923.6,2922.1,0.4852]
[1763574632540,6.8411151,2923.5,2922.4,0.90699264]
[1763574633037,6.8411151,2923.5,2922.5,0.4852]
[1763574633342,6.83947746,2924.2,2922.5,0.6072]
[1763574633494,10.25921619,2924.2,2922.6,0.4852]
[1763574633692,9.17746474,2924.1,2922.6,0.4852]
[1763574633925,9.17746474,2924.1,2922.6,0.6072]
[1763574634122,0.405504,2924.0,2922.6,0.6072]
[1763574634324,6.75669048,2923.6,2921.9,0.4852]
[1763574634527,0.405504,2923.2,2922.0,0.122]
[1763574634929,0.405504,2923.2,2922.1,0.4852]
[1763574635233,0.90699264,2923.3,2922.1,0.4852]
[1763574635531,6.8413491,2923.4,2922.1,0.4852]
[1763574635835,3.82583002,2923.7,2922.1,0.4852]
[1763574636054,1.04378162,2924.1,2922.1,0.4852]
[1763574636195,6.83994528,2924.0,2922.2,0.405504]
[1763574636395,6.83994528,2924.0,2922.3,0.122]
[1763574636706,0.90699264,2924.1,2922.5,0.90699264]
[1763574636903,0.90699264,2924.1,2922.6,0.4852]
[1763574637898,6.83947746,2924.2,2922.7,0.122]
[1763574638109,10.94336394,2924.2,2922.8,0.6748]
[1763574638566,10.94336394,2924.2,2922.9,1.39229264]
[1763574638875,7.52362521,2924.2,2922.9,8.23472785]
[1763574639052,7.52362521,2924.2,2922.8,0.1895]
[1763574639053,10.94336394,2924.2,2923.0,0.4853]
[1763574639252,7.52362521,2924.2,2923.0,0.4853]
[1763574639665,0.002,2924.3,2924.1,0.12202]
[1763574639968,0.002,2924.3,2924.1,0.72932]
[1763574640351,6.8413518,2924.3,2923.7,0.1895]
[1763574640552,0.002,2924.3,2923.6,0.122]
[1763574640753,0.002,2924.3,2923.0,0.90699264]
[1763574641128,0.002,2924.3,2923.1,0.4853]
[1763574641329,0.405504,2924.2,2922.8,0.6748]
[1763574641570,0.002,2924.3,2922.9,0.6073]
[1763574641732,0.002,2924.3,2923.0,0.405504]
[1763574641932,0.002,2924.3,2924.2,0.1895]
[1763574642244,0.002,2924.3,2923.1,0.90699264]
[1763574642442,0.002,2924.3,2923.8,0.1895]
[1763574642649,0.002,2924.3,2923.9,0.122]
[1763574642857,0.002,2924.2,2923.8,0.122]
[1763574643058,0.002,2924.2,2924.1,0.1895]
[1763574643258,0.002,2924.2,2923.8,0.122]
[1763574643650,0.002,2924.2,2923.3,0.4853]
[1763574643858,0.002,2924.2,2923.3,3.42074918]
[1763574644035,0.002,2924.2,2923.4,0.46407492]
[1763574644235,0.002,2924.2,2923.5,0.122]
[1763574644467,0.002,2924.2,2923.4,0.4853]
[1763574644681,0.002,2924.2,2923.6,0.122]
[1763574645370,0.002,2924.2,2923.7,0.122]
[1763574645575,0.002,2924.2,2922.9,0.4853]
[1763574645872,0.405504,2924.0,2922.8,0.6748]
[1763574646269,0.1868,2923.9,2922.8,0.6748]
[1763574646655,3.60692492,2923.9,2922.8,0.6748]
[1763574646871,6.83971136,2924.1,2922.9,1.39229264]
[1763574647061,0.884204,2924.0,2922.9,0.4853]
[1763574647257,1.79119664,2924.0,2923.0,0.122]
[1763574647671,3.612,2923.9,2923.0,0.122]
[1763574647868,1.79119664,2924.0,2923.0,0.122]
[1763574648054,1.54706194,2923.9,2922.8,0.6748]
[1763574648252,0.90699264,2924.0,2922.9,0.6073]
[1763574648783,10.2602688,2923.9,2923.0,0.4853]
[1763574650000,13.6803584,2923.9,2922.8,0.1895]
[1763574650178,13.6803584,2923.9,2922.9,0.122]
[1763574650362,1.41590584,2923.8,2922.9,0.122]
[1763574650875,1.31249664,2923.6,2921.9,0.4853]
[1763574651080,4.017504,2923.4,2921.8,0.1859]
[1763574651250,0.405504,2923.2,2921.8,0.7932]
[1763574651449,0.405504,2923.0,2921.8,0.7932]
[1763574651688,1.31249664,2923.0,2921.5,0.1895]
[1763574651864,0.405504,2922.8,2921.8,0.122]
[1763574652252,0.405504,2922.6,2921.8,0.122]
[1763574652589,0.405504,2922.6,2921.7,0.122]
[1763574652787,6.84345594,2922.5,2921.7,0.122]
[1763574653095,6.84228532,2923.0,2922.5,0.1895]
[1763574653387,6.84228532,2923.0,2922.5,0.6748]
[1763574653818,0.0421,2922.9,2921.5,0.1895]
[1763574653972,0.5208,2922.9,2921.6,1.51429264]
[1763574654169,0.5208,2922.9,2921.7,0.122]
[1763574654887,0.405504,2922.7,2921.8,0.122]
[1763574655203,0.405504,2922.7,2921.7,0.122]
[1763574656124,0.4787,2923.6,2921.8,0.4853]
[1763574656285,0.90699264,2923.4,2921.8,0.4853]
[1763574656469,0.405504,2923.2,2921.8,0.4853]
[1763574656912,0.90699264,2923.0,2921.9,3.42243061]
[1763574657261,0.90699264,2923.0,2921.8,3.90783332]
[1763574657421,0.90699264,2923.0,2921.9,0.4853]
[1763574659017,6.8425194,2922.9,2922.0,0.122]
[1763574659224,10.2637791,2922.9,2922.0,0.122]
[1763574659518,10.2637791,2922.9,2922.1,0.1895]
[1763574660017,3.4211647,2923.0,2922.1,0.1895]
[1763574660223,6.84219878,2923.1,2922.1,0.6748]
[1763574660408,0.405504,2923.0,2922.2,0.4853]
[1763574660592,0.002,2924.2,2922.2,0.6073]
[1763574660918,6.8401792,2923.9,2922.3,6.8439243]
[1763574661136,10.2603061,2923.9,2922.4,0.90699264]
[1763574661320,0.002,2924.2,2922.5,0.405504]
[1763574661517,3.42178115,2924.2,2922.5,0.890804]
[1763574661717,3.42178115,2924.2,2923.0,0.405504]
[1763574662045,0.002,2924.2,2923.0,0.405504]
[1763574662193,6.84157262,2924.2,2923.1,0.7968]
[1763574662397,6.84157262,2924.2,2923.2,0.4853]
[1763574662639,10.26140651,2924.2,2923.2,0.4853]
[1763574662836,10.26140651,2924.2,2923.3,0.122]
[1763574662837,0.002,2924.1,2923.3,0.122]
[1763574663396,0.0421,2923.4,2922.1,0.1905]
[1763574663599,0.405504,2924.0,2922.5,0.122]
[1763574663830,0.0421,2923.7,2922.5,1.02899264]
[1763574664031,0.0421,2923.7,2922.6,0.4853]
[1763574664547,0.002,2924.1,2923.6,0.1895]
[1763574664783,0.002,2924.1,2923.7,0.122]
[1763574665246,0.002,2924.1,2923.7,7.44792987]
[1763574665537,0.002,2924.2,2924.0,0.90699264]
[1763574665737,0.002,2924.2,2924.1,0.4853]
[1763574666243,0.002,2924.2,2923.6,0.6748]
[1763574666447,0.002,2924.2,2923.0,0.1895]
[1763574666448,0.002,2924.2,2923.7,0.122]
[1763574667016,0.002,2924.2,2923.8,0.122]
[1763574667451,0.4807,2924.2,2923.8,0.122]
[1763574667745,0.1854,2923.9,2923.0,0.1895]
[1763574667902,0.405504,2923.8,2922.4,0.001]
[1763574668108,1.79869664,2923.8,2922.4,0.001]
[1763574668303,1.31249664,2923.4,2922.4,0.001]
[1763574668718,0.1854,2922.5,2922.4,0.001]
[1763574668924,0.590904,2922.5,2922.1,0.001]
[1763574669153,1.31249664,2922.2,2922.1,0.001]
[1763574669639,1.79869664,2922.2,2922.1,0.001]
[1763574670351,2.14531117,2922.2,2922.1,0.001]
[1763574671065,5.56739042,2922.2,2922.1,0.001]
[1763574671359,35.17375076,2922.2,2921.0,0.001]
[1763574671538,0.442704,2921.1,2921.0,0.001]
[1763574671939,0.928904,2921.1,2921.0,0.001]
[1763574672139,1.11249366,2921.1,2921.0,0.001]
[1763574672371,0.405504,2921.4,2921.0,0.001]
[1763574672667,0.4862,2922.0,2921.0,0.001]
[1763574672819,10.61285228,2922.2,2921.1,0.4627]
[1763574673138,6.84462696,2922.0,2921.1,0.4627]
[1763574673347,3.42231348,2922.0,2921.1,0.4627]
[1763574673549,1.00191816,2923.7,2921.9,0.1833]
[1763574673756,3.42020658,2923.8,2922.9,0.1833]
[1763574673935,3.41985568,2924.1,2922.9,0.3053]
[1763574674118,3.41985568,2924.1,2923.0,0.4627]
[1763574674321,0.002,2924.3,2924.0,0.1833]
[1763574674720,0.002,2924.3,2924.1,0.4627]
[1763574675120,0.002,2924.3,2924.1,4.91154832]
[1763574675520,0.002,2924.3,2924.1,1.36969264]
[1763574675867,0.002,2924.3,2923.3,0.1833]
[1763574676048,0.002,2924.3,2923.3,0.646]
[1763574676262,0.002,2924.3,2923.3,1.55299264]
[1763574676467,0.002,2924.3,2923.4,0.4627]
[1763574676794,0.893704,2924.2,2922.6,0.122]
[1763574677075,0.002,2924.2,2922.9,0.405504]
[1763574677278,0.002,2924.2,2922.9,1.31249664]
[1763574677435,0.002,2924.2,2923.1,0.405504]
[1763574677639,0.002,2924.2,2923.2,0.4627]
[1763574678086,0.002,2924.2,2923.4,0.405504]
[1763574678376,3.90352989,2926.3,2923.8,1.31249664]
[1763574678540,3.41820891,2925.6,2924.5,0.1833]
[1763574678744,3.41882146,2926.7,2924.6,1.31249664]
[1763574679043,3.41693432,2926.6,2924.8,0.90699264]
[1763574679239,0.002,2926.7,2926.3,0.1833]
[1763574679440,0.002,2927.7,2926.4,0.405504]
[1763574679696,0.002,2927.7,2926.8,1.31249664]
[1763574679929,0.002,2927.7,2926.5,0.4627]
[1763574680192,0.002,2927.7,2926.9,0.122]
[1763574680353,0.002,2927.7,2927.0,0.4627]
[1763574680539,6.83331635,2927.7,2926.5,0.4627]
[1763574680741,6.83331635,2927.7,2926.6,0.122]
[1763574681076,6.83331635,2927.7,2926.9,0.90699264]
[1763574681077,0.002,2927.7,2926.9,0.90699264]
[1763574681264,0.002,2927.7,2927.0,0.405504]
[1763574681574,0.002,2927.7,2927.1,0.405504]
[1763574681737,0.002,2927.7,2927.5,1.31249664]
[1763574681943,0.002,2928.3,2927.6,0.526504]
[1763574682182,0.002,2928.3,2927.9,0.1833]
[1763574682381,0.002,2928.7,2928.0,1.31249664]
[1763574682538,0.1854,2931.1,2928.7,1.31249664]
[1763574682741,0.1854,2931.1,2929.2,0.405504]
[1763574682942,0.4862,2931.0,2928.8,0.5837]
[1763574683192,0.4862,2931.0,2929.1,0.90699264]
[1763574683193,13.647685,2930.9,2929.1,0.90699264]
[1763574683345,1.4133885,2930.8,2928.8,0.121]
[1763574683693,0.405504,2930.3,2927.9,0.1833]
[1763574683869,0.405504,2930.3,2927.9,0.646]
[1763574684040,0.90699264,2930.4,2927.9,0.646]
[1763574684041,0.405504,2930.1,2928.0,0.121]
[1763574684444,0.405504,2929.9,2927.8,0.121]
[1763574684749,0.405504,2929.7,2927.8,0.121]
[1763574685083,1.31249664,2929.3,2927.8,0.121]
[1763574685452,0.405504,2929.1,2927.8,0.121]
[1763574685838,0.405504,2928.9,2926.7,0.454]
[1763574686154,0.405504,2928.9,2926.8,0.121]
[1763574686336,0.81824966,2928.8,2926.8,0.121]
[1763574686539,0.81824966,2928.8,2926.8,0.575]
[1763574686878,0.456,2928.7,2926.8,0.575]
[1763574687080,6.82896848,2928.7,2927.0,3.41646737]
[1763574687242,10.69945272,2928.7,2927.2,0.405504]
[1763574687465,10.69945272,2928.7,2927.0,0.454]
[1763574687466,2.45147791,2928.6,2927.0,0.454]
[1763574687658,0.405504,2928.5,2926.8,0.121]
[1763574687882,0.456,2928.4,2926.9,0.90699264]
[1763574688070,0.90699264,2928.6,2927.0,0.405504]
[1763574688271,0.90699264,2928.7,2927.2,0.405504]
[1763574688497,0.45067702,2928.6,2927.2,0.405504]
[1763574688663,0.90667702,2928.6,2927.1,0.454]
[1763574688862,0.861504,2928.5,2926.8,0.121]
[1763574689091,0.861504,2928.5,2926.8,3.53768785]
[1763574689092,0.90699264,2928.3,2926.8,3.53768785]
[1763574689277,0.90699264,2928.3,2926.8,3.99168785]
[1763574689477,1.16074947,2928.2,2926.8,0.575]
[1763574689676,1.16074947,2928.2,2926.8,1.48199264]
[1763574689879,0.90699264,2928.6,2926.9,1.36099264]
[1763574690068,0.90699264,2928.6,2927.0,0.405504]
[1763574690396,0.405504,2928.4,2926.8,0.575]
[1763574690599,0.405504,2928.4,2926.8,0.121]
[1763574690820,0.405504,2928.2,2926.8,0.121]
[1763574690963,0.90699264,2928.1,2925.8,0.454]
[1763574691184,1.31249664,2927.8,2925.8,3.99284904]
[1763574691369,1.31249664,2927.6,2925.1,0.454]
[1763574691608,1.31249664,2927.6,2925.2,0.121]
[1763574691816,1.31249664,2927.1,2925.1,0.454]
[1763574692109,1.31249664,2927.1,2925.0,0.121]
[1763574692280,0.405504,2926.9,2925.0,0.121]
[1763574692702,3.612,2926.9,2925.1,1.36099264]
[1763574692910,0.405504,2927.0,2925.2,0.454]
[1763574693067,6.83340166,2926.8,2925.3,3.4184528]
[1763574693263,0.90699264,2926.7,2925.2,0.454]
[1763574693508,0.405504,2926.6,2925.2,0.454]
[1763574693807,0.861504,2926.6,2924.9,0.121]
[1763574694164,0.405504,2926.4,2924.9,0.575]
[1763574694566,0.456,2926.5,2925.0,0.454]
[1763574694962,0.405504,2926.4,2924.9,0.121]
[1763574695407,0.90699264,2926.2,2924.9,0.121]
[1763574695588,1.11588465,2926.1,2924.9,3.53990684]
[1763574695904,1.11588465,2926.1,2924.4,3.41945668]
[1763574695905,0.405504,2926.0,2924.2,0.454]
[1763574696106,1.31249664,2925.6,2923.7,0.6517]
[1763574696310,1.31249664,2925.6,2923.7,4.07202356]
[1763574696471,0.405504,2925.4,2923.7,0.6517]
[1763574696670,0.405504,2925.4,2923.6,0.001]
[1763574697008,0.405504,2925.2,2923.6,0.001]
[1763574697510,1.31249664,2925.0,2923.6,0.001]
[1763574697904,1.31249664,2925.0,2923.6,0.4771]
[1763574698117,0.90699264,2925.0,2923.6,0.4771]
[1763574698804,0.4769,2924.9,2923.6,0.4771]
[1763574699512,10.25711157,2924.8,2923.6,0.90799264]
[1763574699685,0.5354,2924.7,2924.6,0.001]
[1763574700572,1.84789664,2924.7,2924.6,0.001]
[1763574700782,0.405504,2924.6,2924.3,0.001]
[1763574701020,0.405504,2924.4,2924.3,0.001]
[1763574701305,3.82500885,2924.4,2924.3,0.001]
[1763574701477,5.07403849,2924.4,2924.3,0.001]
[1763574701896,3.89640485,2924.4,2924.3,0.001]
[1763574702208,3.41950485,2924.4,2924.3,0.001]
[1763574703014,6.83854202,2924.6,2924.3,0.001]
[1763574703176,0.4769,2925.2,2924.3,0.001]
[1763574703375,0.4769,2925.1,2924.3,0.001]
[1763574704492,0.405504,2925.0,2924.3,0.001]
[1763574704810,0.4769,2924.9,2924.3,0.001]
[1763574705209,3.41903719,2924.8,2924.3,0.001]
[1763574705372,6.83807438,2924.8,2924.3,0.001]
[1763574706225,3.41845694,2925.3,2924.3,0.001]
[1763574706414,0.65,2925.5,2924.3,0.4771]
[1763574706613,0.90699264,2925.3,2924.3,0.4771]
[1763574706772,0.4769,2925.2,2924.3,0.001]
[1763574707199,3.41843673,2925.4,2924.4,0.4761]
[1763574707408,6.83687346,2925.4,2924.4,0.4761]
[1763574708423,10.25531019,2925.4,2924.4,0.4761]
[1763574708737,1.38389264,2925.3,2924.3,0.001]
[1763574709385,6.83713934,2925.2,2924.3,0.001]
[1763574709890,1.38389264,2925.1,2924.3,0.001]
[1763574710092,0.405504,2925.0,2924.3,0.001]
[1763574710411,0.882404,2925.0,2924.3,0.001]
[1763574710917,0.405504,2924.8,2924.3,0.001]
[1763574711220,1.31249664,2924.4,2923.6,0.001]
[1763574711425,0.0488,2923.7,2923.6,0.001]
[1763574711582,0.454304,2923.7,2923.6,0.001]
[1763574711787,0.931204,2923.7,2923.6,0.001]
[1763574712846,0.90699264,2924.2,2923.6,0.001]
[1763574712989,1.10209264,2924.4,2923.6,0.001]
[1763574713196,0.90699264,2924.2,2923.6,0.001]
[1763574713505,3.41962178,2924.3,2923.6,0.001]
[1763574713923,0.90699264,2924.2,2923.6,0.001]
[1763574714846,1.38389264,2924.2,2923.6,0.001]
[1763574715026,0.90699264,2924.2,2923.6,0.001]
[1763574715419,6.83971136,2924.1,2923.6,0.001]
[1763574715749,3.41985568,2924.1,2923.6,0.001]
[1763574716035,3.41978121,2924.2,2923.6,0.4771]
[1763574716241,6.83956242,2924.2,2923.6,0.4771]
[1763574716624,0.672,2925.0,2923.6,0.4771]
[1763574716826,1.24490222,2925.0,2923.6,0.4771]
[1763574717016,10.7337045,2924.9,2923.6,0.4771]
[1763574717735,0.882404,2924.8,2923.6,0.001]
[1763574718136,0.405504,2924.6,2923.6,0.001]
[1763574718503,0.0514,2923.7,2923.6,0.001]
[1763574718703,0.405504,2924.4,2923.6,0.001]
[1763574718929,0.65583966,2924.3,2923.6,0.001]
[1763574719431,1.31249664,2924.1,2923.6,0.001]
[1763574720316,3.8958203,2924.9,2923.6,0.4771]
[1763574720647,0.4769,2924.8,2923.6,0.001]
[1763574720945,6.8378406,2924.9,2923.7,0.4761]
[1763574720946,3.4189203,2924.9,2923.7,0.4761]
[1763574721143,0.90699264,2924.8,2923.7,0.4761]
[1763574721302,7.19944263,2924.9,2923.7,0.4761]
[1763574721509,10.45358703,2925.0,2923.7,3.89636754]
[1763574721837,0.002,2925.0,2924.9,0.1894]
[1763574722047,0.002,2925.6,2924.9,0.6655]
[1763574722347,0.002,2925.6,2925.2,0.1894]
[1763574722768,3.4204528,2925.3,2924.9,0.1894]
[1763574723047,0.002,2925.3,2924.9,0.6655]
[1763574723248,6.83890628,2925.3,2924.0,0.1894]
[1763574723469,3.4204528,2925.3,2924.3,0.4761]
[1763574723660,0.002,2925.6,2925.2,0.1894]
[1763574723869,0.1951,2927.7,2925.5,1.31249664]
[1763574724040,7.02640102,2927.7,2925.6,0.4761]
[1763574724252,10.44205153,2927.7,2925.7,0.405504]
[1763574724420,3.61075051,2927.7,2925.9,0.405504]
[1763574724620,7.02640102,2927.7,2925.9,0.405504]
[1763574724856,7.02640102,2927.7,2926.0,0.4761]
[1763574725166,7.02640102,2927.7,2925.8,0.121]
[1763574725167,1.1795401,2927.6,2925.8,0.121]
[1763574725332,2.08653274,2927.6,2925.8,0.121]
[1763574725519,10.24765155,2927.5,2926.0,3.41763499]
[1763574725864,1.31249664,2927.4,2925.9,0.4761]
[1763574726046,1.78939664,2927.4,2925.9,0.4761]
[1763574726246,0.405504,2927.2,2925.9,0.4761]
[1763574726434,0.405504,2927.2,2925.9,3.8938406]
[1763574726618,6.8317677,2927.5,2926.0,0.90699264]
[1763574726823,6.8317677,2927.5,2926.1,0.4761]
[1763574727081,0.002,2929.0,2926.1,0.4761]
[1763574727296,0.002,2928.7,2927.4,0.1894]
[1763574727425,0.002,2928.7,2927.5,0.5971]
[1763574727623,0.002,2928.7,2927.7,0.90699264]
[1763574727875,0.002,2928.7,2927.8,0.121]
[1763574728461,0.002,2928.7,2927.9,0.4859]
[1763574728662,0.34363692,2928.7,2927.8,0.121]
[1763574728882,0.002,2928.7,2927.9,0.4859]
[1763574729353,0.002,2928.7,2928.0,0.121]
[1763574729551,0.002,2928.7,2928.1,3.4151839]
[1763574729860,0.002,2928.7,2928.0,0.6069]
[1763574730023,0.002,2928.7,2928.0,4.02210624]
[1763574730228,0.002,2928.7,2928.6,0.1927]
[1763574730473,0.002,2929.0,2928.6,1.50519664]
[1763574730679,0.002,2929.3,2928.8,0.405504]
[1763574730833,0.1849,2931.1,2928.9,6.72320556]
[1763574731163,0.1849,2931.1,2929.0,1.31249664]
[1763574731393,0.1951,2931.5,2929.5,1.31249664]
[1763574731540,0.17858945,2932.4,2929.5,1.31249664]
[1763574731541,6.82104974,2932.1,2931.0,0.1927]
[1763574731729,10.41613193,2932.2,2931.1,0.121]
[1763574731927,0.4685,2932.1,2931.1,0.121]
[1763574732264,1.08846319,2932.0,2931.1,0.121]
[1763574732471,1.08846319,2932.0,2930.5,0.6786]
[1763574732765,1.08846319,2932.0,2930.3,0.121]
[1763574732766,0.4685,2931.9,2930.3,0.121]
[1763574732970,0.405504,2931.8,2930.3,0.121]
[1763574733167,0.405504,2931.8,2930.1,0.1927]
[1763574733373,0.405504,2931.7,2930.2,0.121]
[1763574733675,10.23401787,2931.4,2930.2,0.121]
[1763574733857,1.40508178,2931.3,2930.2,0.121]